bitfinex/quotes_ETHUSD_20241105
["timestamp","ask_amount","ask_price","bid_price","bid_amount"]
[1730778939409,4.13308,2419.5,2419.0,4.13392]
[1730778939610,4.13308,2419.5,2419.1,0.29604241]
[1730778939917,4.13327,2419.4,2419.2,0.29604241]
[1730778940117,4.13327,2419.4,2419.0,4.13392]
[1730778940346,4.13327,2419.4,2419.1,0.29604039]
[1730778940706,4.13327,2419.4,2419.2,0.29604039]
[1730778940846,4.13327,2419.4,2419.0,4.13392]
[1730778941056,4.13327,2419.4,2419.1,0.29611228]
[1730778941211,4.13327,2419.4,2419.2,0.29611228]
[1730778941414,4.13327,2419.4,2419.0,4.13392]
[1730778941616,4.13327,2419.4,2419.1,0.29614528]
[1730778941816,4.13327,2419.4,2419.2,0.29614528]
[1730778942013,4.13327,2419.4,2419.0,4.13392]
[1730778942251,4.13327,2419.4,2419.1,0.29611722]
[1730778942449,4.13319,2419.5,2419.2,0.29611722]
[1730778942662,4.13319,2419.5,2419.0,4.13392]
[1730778942817,4.13319,2419.5,2419.1,0.29610976]
[1730778943013,4.13319,2419.5,2419.2,0.29610976]
[1730778943247,4.13319,2419.5,2419.0,4.13384]
[1730778943456,4.13319,2419.5,2419.1,0.29609051]
[1730778943658,4.13319,2419.5,2419.2,0.29609051]
[1730778943855,4.13319,2419.5,2419.0,4.13384]
[1730778944054,4.13319,2419.5,2419.1,0.76992078]
[1730778944213,4.13328,2419.4,2419.2,0.29611926]
[1730778944416,4.13328,2419.4,2418.9,8.94664465]
[1730778944619,4.13328,2419.4,2419.0,0.7699781]
[1730778944840,4.13328,2419.4,2419.1,0.29614131]
[1730778945032,4.13328,2419.4,2419.2,0.29614131]
[1730778945232,4.13328,2419.4,2418.9,8.94664465]
[1730778945687,4.13328,2419.4,2419.0,0.76999997]
[1730778945688,4.13376,2419.1,2419.0,0.76999997]
[1730778945818,4.13376,2419.2,2419.0,0.29614972]
[1730778946018,4.13375,2419.2,2418.7,4.90727]
[1730778946261,8.26745,2419.2,2418.8,0.77018154]
[1730778946421,8.26745,2419.2,2418.9,0.29621955]
[1730778946621,8.26745,2419.2,2419.0,0.29621955]
[1730778946920,4.13376,2419.1,2418.7,4.90727]
[1730778947121,4.13376,2419.1,2418.8,0.77022315]
[1730778947355,4.13376,2419.1,2418.9,0.29623555]
[1730778947526,4.13376,2419.1,2419.0,0.29622668]
[1730778948864,4.13376,2419.1,2418.7,4.90727]
[1730778949230,4.13376,2419.1,2418.8,0.77024601]
[1730778949426,4.13376,2419.1,2418.9,0.29624596]
[1730778949639,4.13376,2419.1,2418.7,4.90727]
[1730778949840,4.13376,2419.1,2418.8,0.77023902]
[1730778950167,4.13376,2419.1,2418.9,0.29624166]
[1730778950461,4.13376,2419.1,2419.0,0.29624103]
[1730778950850,4.13376,2419.1,2418.7,4.90727]
[1730778951041,4.13376,2419.1,2418.8,0.77024014]
[1730778951236,4.89446,2419.3,2418.9,0.29623985]
[1730778951438,9.028,2419.3,2419.0,0.29623985]
[1730778951636,9.028,2419.3,2418.7,4.90734]
[1730778951637,4.13368,2419.2,2418.7,4.90734]
[1730778951840,4.13368,2419.2,2418.8,0.77021331]
[1730778952073,4.13368,2419.2,2418.9,0.29623177]
[1730778952074,4.1339,2419.1,2418.9,0.29623177]
[1730778952233,4.1339,2419.1,2418.7,0.7729]
[1730778952562,4.1339,2419.1,2418.8,0.77020051]
[1730778952766,4.1339,2419.1,2418.9,0.29622685]
[1730778952954,4.1339,2419.1,2419.0,0.29622685]
[1730778954034,4.1339,2419.1,2418.7,0.7729]
[1730778954231,4.1339,2419.1,2418.8,0.77025808]
[1730778954543,4.1339,2419.1,2418.9,0.29624899]
[1730778954754,4.1339,2419.1,2418.7,0.7729]
[1730778954955,4.1339,2419.1,2418.8,0.77025667]
[1730778955160,4.1339,2419.1,2418.9,0.29624845]
[1730778955469,4.1339,2419.1,2419.0,0.29624845]
[1730778955793,4.1339,2419.1,2418.5,0.59260596]
[1730778955794,4.13418,2418.9,2418.5,0.59260596]
[1730778955994,4.13418,2418.9,2418.6,0.7703833]
[1730778956295,4.13418,2418.9,2418.7,0.7703833]
[1730778956598,4.13418,2418.9,2418.8,0.29631824]
[1730778956804,4.13441,2418.8,2418.5,0.59266755]
[1730778956953,0.8073,2418.7,2418.6,0.77052341]
[1730778957353,0.8073,2418.7,2418.6,0.77059365]
[1730778957756,4.94142,2418.9,2418.6,0.77059365]
[1730778957959,4.94142,2418.9,2418.7,0.2963521]
[1730778958156,4.13407,2419.0,2418.8,0.2963521]
[1730778958354,8.1373,2419.5,2419.0,0.7881]
[1730778958593,4.13305,2419.6,2419.1,4.42996351]
[1730778958808,4.13305,2419.6,2419.2,4.42985351]
[1730778958962,4.13305,2419.6,2419.3,0.29630351]
[1730778959160,4.13305,2419.6,2419.2,4.13355]
[1730778959360,4.13309,2419.5,2419.3,0.29622315]
[1730778959588,4.13309,2419.5,2419.0,9.13852943]
[1730778959799,4.13309,2419.5,2419.1,0.77036205]
[1730778960130,4.13309,2419.5,2419.2,0.29628898]
[1730778960288,4.13309,2419.5,2419.3,0.29628898]
[1730778960491,4.13305,2419.6,2419.1,4.13367]
[1730778960791,4.13309,2419.5,2419.2,0.29633514]
[1730778961005,4.13309,2419.5,2419.3,0.29633514]
[1730778961213,4.13309,2419.5,2419.1,4.13367]
[1730778961398,4.13309,2419.5,2419.2,0.77087136]
[1730778961601,4.13309,2419.5,2419.3,0.29648486]
[1730778961809,4.13309,2419.5,2419.1,4.13367]
[1730778962085,4.13309,2419.5,2419.2,0.77096683]
[1730778962300,4.13309,2419.5,2419.3,0.29652158]
[1730778962486,4.13309,2419.5,2419.1,4.13374]
[1730778962801,4.13309,2419.5,2419.2,0.77095104]
[1730778963039,4.13309,2419.5,2419.3,0.29651551]
[1730778963325,4.13299,2419.6,2419.1,4.13374]
[1730778963526,4.93997,2419.8,2419.3,4.13325]
[1730778963726,4.13282,2419.7,2419.4,0.29649298]
[1730778963903,4.13282,2419.7,2419.2,4.13358]
[1730778963904,4.13282,2419.7,2419.3,4.13342]
[1730778964109,4.13282,2419.7,2419.4,0.29648697]
[1730778964317,4.13282,2419.7,2419.3,4.13342]
[1730778964623,4.13282,2419.7,2419.4,0.29646507]
[1730778964826,4.13282,2419.7,2419.5,0.29642848]
[1730778965017,4.13282,2419.7,2419.3,4.13342]
[1730778965197,4.13282,2419.7,2419.4,0.2964253]
[1730778965545,4.13282,2419.7,2419.5,0.2964253]
[1730778965832,4.13302,2419.6,2419.1,4.13365]
[1730778966017,4.13302,2419.6,2419.2,0.77074957]
[1730778966218,4.13274,2419.7,2419.3,0.29643802]
[1730778966524,4.13274,2419.7,2419.2,4.1335]
[1730778966703,4.13274,2419.7,2419.3,0.2964015]
[1730778966902,4.13274,2419.7,2419.4,0.2964015]
[1730778967116,4.13274,2419.7,2419.2,4.1335]
[1730778967311,4.13296,2419.6,2419.3,0.29627858]
[1730778967630,4.13274,2419.7,2419.4,0.29627858]
[1730778967931,4.13274,2419.7,2419.2,4.13358]
[1730778968094,4.13274,2419.7,2419.3,0.77028986]
[1730778968292,4.13274,2419.7,2419.4,0.29626121]
[1730778968535,4.63100332,2419.7,2419.1,4.13363]
[1730778968823,4.13274,2419.7,2419.2,0.77022444]
[1730778969028,4.13291,2419.6,2419.3,0.29623605]
[1730778969329,4.13291,2419.6,2419.4,0.29623605]
[1730778969527,4.13274,2419.7,2419.2,4.13355]
[1730778969841,4.13274,2419.7,2419.3,0.29621362]
[1730778970044,4.13274,2419.7,2419.4,0.29621362]
[1730778970336,4.13274,2419.7,2419.2,4.13355]
[1730778970522,4.13274,2419.7,2419.3,0.29619554]
[1730778970698,4.13274,2419.7,2419.4,0.29619554]
[1730778970896,4.13274,2419.7,2419.2,4.13355]
[1730778970897,4.13293,2419.6,2419.2,4.13355]
[1730778971216,4.13274,2419.7,2419.3,0.29618969]
[1730778971420,4.13274,2419.7,2419.4,0.29618969]
[1730778971594,4.13274,2419.7,2419.2,4.13355]
[1730778971791,4.13274,2419.7,2419.3,0.29617018]
[1730778972028,4.13274,2419.7,2419.4,0.29617018]
[1730778972232,4.13274,2419.7,2419.2,4.13355]
[1730778972441,4.13274,2419.7,2419.3,0.76995508]
[1730778972598,4.13274,2419.7,2419.4,0.29613245]
[1730778972794,8.76385332,2419.7,2419.2,4.13355]
[1730778973119,8.76385332,2419.7,2419.3,0.29614529]
[1730778973515,4.63100332,2419.7,2419.3,0.29614529]
[1730778973737,4.63100332,2419.7,2419.2,4.13355]
[1730778973936,4.13274,2419.7,2419.2,4.13355]
[1730778974810,8.2656,2419.7,2419.2,4.13355]
[1730778975008,8.26563,2419.7,2419.3,0.29605255]
[1730778975748,0.8073,2419.8,2419.1,5.85812837]
[1730778975912,4.13305,2419.6,2419.1,5.85825837]
[1730778976835,4.13305,2419.6,2419.2,4.13356]
[1730778977009,4.94001,2419.8,2419.3,2.55419837]
[1730778977210,0.8073,2419.8,2419.4,4.13317]
[1730778979025,4.93989,2419.8,2419.4,4.13317]
[1730778981049,4.93989,2419.8,2419.5,0.29599071]
[1730778981254,4.93989,2419.8,2419.4,4.13317]
[1730778981537,0.8073,2419.8,2419.5,0.29593274]
[1730778981846,4.9399,2419.8,2419.4,4.13317]
[1730778983258,4.17501315,2419.9,2419.5,0.29594408]
[1730778983419,4.17501315,2419.9,2419.4,4.13314]
[1730778983622,4.17501315,2419.9,2419.5,0.29592054]
[1730778983953,4.17501315,2419.9,2419.5,4.133]
[1730778984341,8.30753315,2419.9,2419.4,4.13314]
[1730778984562,8.30753315,2419.9,2419.5,0.29596812]
[1730778984749,8.30751315,2419.9,2419.3,6.68744837]
[1730778985067,8.30751315,2419.9,2419.4,4.42923853]
[1730778985268,8.30751315,2419.9,2419.5,0.29598853]
[1730778985472,8.30751315,2419.9,2419.6,0.29598853]
[1730778985809,4.17501315,2419.9,2419.4,4.13325]
[1730778985969,4.13276,2419.7,2419.5,0.29602011]
[1730778986281,4.13276,2419.7,2419.3,0.8297]
[1730778986434,4.13276,2419.7,2419.4,0.29602998]
[1730778986773,4.13276,2419.7,2419.5,0.29602998]
[1730778986972,4.13276,2419.7,2419.3,4.96309]
[1730778987268,4.13273,2419.8,2419.4,4.90303419]
[1730778987453,4.17501315,2419.9,2419.5,4.90315081]
[1730778987653,4.17501315,2419.9,2419.6,0.29626121]
[1730778987859,4.17501315,2419.9,2419.7,0.29626121]
[1730778988064,8.30751315,2419.9,2419.4,4.13318]
[1730778988258,4.17501315,2419.9,2419.5,0.77024108]
[1730778988566,0.04259315,2419.9,2419.6,4.90307108]
[1730778988773,0.04259315,2419.9,2419.7,1.60334108]
[1730778989077,4.17499315,2419.9,2419.8,0.77050277]
[1730778989277,4.17499315,2419.9,2419.8,0.29624245]
[1730778989682,4.99989315,2419.9,2419.8,0.29624245]
[1730778990393,4.13278,2419.7,2419.2,9.10008]
[1730778990564,4.13278,2419.7,2419.3,1.36340599]
[1730778990744,4.13278,2419.7,2419.4,0.7706103]
[1730778990950,4.13278,2419.7,2419.5,0.7706103]
[1730778991152,4.13278,2419.7,2419.6,0.29638446]
[1730778992601,5.04604732,2419.7,2419.6,0.29638446]
[1730778992760,5.87094732,2419.7,2419.6,0.29638446]
[1730778992959,5.87094732,2419.7,2419.1,0.59304358]
[1730778993167,5.87094732,2419.7,2419.2,0.77098129]
[1730778993473,4.13291,2419.6,2419.3,0.77098129]
[1730778993683,4.13317,2419.5,2419.4,0.29652714]
[1730778994550,4.13327,2419.4,2419.0,4.96689]
[1730778994786,8.26663,2419.4,2419.1,1.36404922]
[1730778994955,8.26663,2419.4,2419.2,0.77097561]
[1730778995156,4.13327,2419.4,2419.3,0.29652496]
[1730778995373,4.13327,2419.4,2419.3,0.29647607]
[1730778995802,4.95977,2419.4,2419.3,0.29647607]
[1730778996555,4.95977,2419.4,2419.3,0.29643802]
[1730778997506,5.869057,2419.4,2419.3,0.29643802]
[1730778998170,4.95977,2419.4,2419.3,0.29643802]
[1730779000470,0.8265,2419.4,2419.3,0.29643802]
[1730779000677,4.13325,2419.4,2419.3,0.29643802]
[1730779005421,4.13325,2419.4,2419.3,0.29659507]
[1730779005817,4.13325,2419.4,2419.0,0.8331]
[1730779006014,4.13325,2419.4,2419.1,0.77115794]
[1730779006218,4.13325,2419.4,2419.2,0.77115794]
[1730779006522,4.13325,2419.4,2419.3,0.29659715]
[1730779009211,4.13325,2419.4,2419.0,0.8331]
[1730779009427,4.13325,2419.4,2419.3,0.29654893]
[1730779009595,4.13325,2419.4,2419.1,0.29654893]
[1730779009786,4.13325,2419.4,2419.2,0.29654893]
[1730779009992,4.13342,2419.3,2419.0,0.8331]
[1730779010297,4.13342,2419.3,2419.1,0.7709875]
[1730779010502,4.13342,2419.3,2419.2,0.29652953]
[1730779011030,4.13326,2419.4,2419.2,0.29652953]
[1730779011226,4.13325,2419.4,2419.3,0.29652953]
[1730779013022,4.13325,2419.4,2419.3,0.29649574]
[1730779016449,4.13325,2419.4,2419.0,0.8331]
[1730779016941,4.13325,2419.4,2419.1,0.77095224]
[1730779017102,4.13325,2419.4,2419.2,0.29651597]
[1730779017306,4.13325,2419.4,2419.3,0.29651597]
[1730779019816,4.13325,2419.4,2419.3,0.77193956]
[1730779020530,4.13325,2419.4,2419.3,0.29651597]
[1730779021255,4.13325,2419.4,2419.3,0.77221701]
[1730779022633,4.13325,2419.4,2419.3,0.77318268]
[1730779023321,8.2663,2419.5,2419.3,0.77318268]
[1730779023519,4.13258,2419.8,2419.4,0.77318268]
[1730779023817,4.13258,2419.8,2419.3,2.5549777]
[1730779023818,4.13258,2419.8,2419.5,0.77318268]
[1730779024017,4.13258,2419.8,2419.6,0.77318268]
[1730779024224,4.13258,2419.8,2419.7,0.29737385]
[1730779025641,0.04259315,2419.9,2419.7,4.90541592]
[1730779025940,0.04259315,2419.9,2419.8,0.77269592]
[1730779026425,0.04259315,2419.9,2419.8,1.52459592]
[1730779026621,0.04259315,2419.9,2419.8,0.7519]
[1730779026852,0.04259315,2419.9,2419.8,1.04866165]
[1730779027049,0.04259315,2419.9,2419.8,5.65606094]
[1730779027255,0.04259315,2419.9,2419.8,1.52349094]
[1730779028075,0.04259315,2419.9,2419.8,1.04866165]
[1730779029640,0.04259315,2419.9,2419.8,1.5229289]
[1730779030180,0.04259315,2419.9,2419.8,0.7519]
[1730779030489,0.04259315,2419.9,2419.8,1.04829127]
[1730779031235,0.04259315,2419.9,2419.8,0.29639127]
[1730779033837,0.04259315,2419.9,2419.6,0.8011]
[1730779034042,0.04259315,2419.9,2419.8,0.29627969]
[1730779036444,0.04259315,2419.9,2419.6,0.8011]
[1730779036751,0.04259315,2419.9,2419.7,0.29626323]
[1730779037087,0.04259315,2419.9,2419.6,0.8011]
[1730779037239,0.04259315,2419.9,2419.7,0.2962661]
[1730779037588,0.04259315,2419.9,2419.6,0.8011]
[1730779037959,0.04259315,2419.9,2419.7,0.29625327]
[1730779038142,0.04259315,2419.9,2419.6,0.8011]
[1730779038490,0.04259315,2419.9,2419.7,0.29625083]
[1730779038780,0.04259315,2419.9,2419.6,0.8011]
[1730779038938,0.04259315,2419.9,2419.7,0.29625422]
[1730779039145,0.04259315,2419.9,2419.6,0.8011]
[1730779039384,0.04259315,2419.9,2419.7,0.29625831]
[1730779039540,0.04259315,2419.9,2419.6,0.8011]
[1730779039742,0.04259315,2419.9,2419.7,0.29627194]
[1730779039984,0.04259315,2419.9,2419.8,0.29627106]
[1730779040387,0.04259315,2419.9,2419.6,0.8011]
[1730779040588,4.17503315,2419.9,2419.7,0.29629388]
[1730779040914,4.17503315,2419.9,2419.6,0.8011]
[1730779041091,4.17503315,2419.9,2419.7,0.29630333]
[1730779041092,0.04259315,2419.9,2419.7,0.29630333]
[1730779041445,0.04259315,2419.9,2419.8,0.29630333]
[1730779042993,0.04259315,2419.9,2419.8,1.05550333]
[1730779043217,0.04259315,2419.9,2419.8,5.18807333]
[1730779043496,0.04259315,2419.9,2419.8,5.66215063]
[1730779045761,0.04259315,2419.9,2419.8,5.74479329]
[1730779046266,0.04259315,2419.9,2419.8,5.66215063]
[1730779048808,0.04259315,2419.9,2419.8,6.25487134]
[1730779048970,0.04259315,2419.9,2419.8,4.89177]
[1730779049171,0.04259315,2419.9,2419.8,6.25504051]
[1730779049368,0.04259315,2419.9,2419.8,6.25506179]
[1730779051619,0.04259315,2419.9,2419.8,9.25506179]
[1730779052801,0.04259315,2419.9,2419.8,9.25546509]
[1730779053704,0.04259315,2419.9,2419.8,9.74958285]
[1730779055137,0.04259315,2419.9,2419.8,9.25546509]
[1730779055287,0.04259315,2419.9,2419.8,9.74958285]
[1730779055729,0.04259315,2419.9,2419.8,11.55014279]
[1730779055957,0.04259315,2419.9,2419.8,9.82511128]
[1730779056435,0.04259315,2419.9,2419.8,9.80511128]
[1730779056629,0.04259315,2419.9,2419.8,7.89177]
[1730779056936,0.04259315,2419.9,2419.8,9.25505295]
[1730779057095,0.04259315,2419.9,2419.8,9.7490214]
[1730779059594,0.04259315,2419.9,2419.8,12.0336991]
[1730779059797,0.04259315,2419.9,2419.8,11.54973065]
[1730779060951,0.04259315,2419.9,2419.8,10.1864477]
[1730779061164,0.04259315,2419.9,2419.8,11.54892312]
[1730779064039,0.7617,2420.9,2420.5,4.1313]
[1730779064269,0.7617,2420.9,2420.6,0.29618223]
[1730779064431,0.7617,2420.9,2420.6,4.13119]
[1730779065469,0.8504703,2421.1,2420.7,6.15150887]
[1730779065770,0.8504703,2421.1,2420.8,0.29592117]
[1730779066065,0.8504703,2421.1,2420.7,5.8555877]
[1730779067038,4.9809503,2421.1,2420.8,0.295777]
[1730779067353,0.8504703,2421.1,2420.7,5.8557077]
[1730779067955,4.9808303,2421.1,2420.8,0.29575554]
[1730779068159,4.9808303,2421.1,2420.7,1.7246777]
[1730779068338,4.13053,2421.0,2420.6,4.13113]
[1730779068539,4.13053,2421.0,2420.7,0.29577308]
[1730779068767,4.13053,2421.0,2420.6,4.13113]
[1730779068969,4.13053,2421.0,2420.7,0.29578507]
[1730779069276,4.13053,2421.0,2420.6,4.13113]
[1730779069569,4.13053,2421.0,2420.7,0.29585512]
[1730779069741,4.13053,2421.0,2420.6,4.13113]
[1730779069950,4.13053,2421.0,2420.7,0.29590793]
[1730779070141,0.8266,2420.9,2420.6,4.13113]
[1730779070347,0.8266,2420.9,2420.7,0.29592997]
[1730779070645,0.8266,2420.9,2420.6,4.13113]
[1730779071478,0.8266,2420.9,2420.7,0.29599466]
[1730779071639,0.8266,2420.9,2420.6,4.13113]
[1730779071840,0.8266,2420.9,2420.7,0.29600416]
[1730779072039,0.8266,2420.9,2420.6,4.13113]
[1730779072553,0.8266,2420.9,2420.7,0.29603739]
[1730779072759,0.8266,2420.9,2420.6,8.26225]
[1730779073087,0.8266,2420.9,2420.7,0.29603832]
[1730779073239,0.8266,2420.9,2420.8,0.29603832]
[1730779076110,0.8266,2420.9,2420.6,4.13113]
[1730779076258,0.8266,2420.9,2420.7,0.29610113]
[1730779076584,0.8266,2420.9,2420.8,0.29610113]
[1730779076898,0.8266,2420.9,2420.6,4.13113]
[1730779077095,0.8266,2420.9,2420.7,0.2961249]
[1730779077400,0.8266,2420.9,2420.8,0.2961249]
[1730779082070,4.95729,2420.9,2420.6,0.29643894]
[1730779082270,0.8266,2420.9,2420.7,0.29647765]
[1730779082497,0.8266,2420.9,2420.8,0.29647765]
[1730779083171,4.95729,2420.9,2420.8,0.29647765]
[1730779084133,4.9662203,2421.1,2420.8,0.29647765]
[1730779084333,4.13052,2421.0,2420.9,0.29658401]
[1730779085089,4.13052,2421.0,2420.9,0.29663251]
[1730779085320,4.94942,2421.0,2420.9,0.29663251]
[1730779085503,4.1308,2420.9,2420.4,4.13146]
[1730779085715,4.1308,2420.9,2420.5,1.3646764]
[1730779085904,4.1308,2420.9,2420.6,0.47466623]
[1730779086232,4.1308,2420.9,2420.7,0.29666583]
[1730779086528,4.1308,2420.9,2420.4,4.13146]
[1730779086529,4.1308,2420.9,2420.8,0.29666583]
[1730779088696,0.8189,2421.0,2420.8,0.29666583]
[1730779088896,0.8189,2421.0,2420.5,1.7246777]
[1730779088897,0.8189,2421.0,2420.9,0.29666583]
[1730779089322,0.0593703,2421.1,2420.9,0.77152377]
[1730779089601,0.0593703,2421.1,2421.0,0.29677605]
[1730779090496,0.0593703,2421.1,2421.0,0.77155431]
[1730779091377,0.0593703,2421.1,2421.0,0.29677605]
[1730779091943,4.1897203,2421.1,2421.0,0.29677605]
[1730779092155,0.0593703,2421.1,2421.0,0.29677605]
[1730779093146,0.0593703,2421.1,2421.0,0.29673906]
[1730779093549,0.0593703,2421.1,2421.0,0.29673294]
[1730779094174,0.0593703,2421.1,2421.0,0.77152302]
[1730779095081,0.0593703,2421.1,2421.0,0.29673294]
[1730779096985,0.0593703,2421.1,2420.8,4.13085]
[1730779097165,0.0593703,2421.1,2420.9,4.90204395]
[1730779097367,0.0593703,2421.1,2421.0,4.90188395]
[1730779097542,0.0593703,2421.1,2421.0,5.69778395]
[1730779097740,0.0593703,2421.1,2421.0,1.56726395]
[1730779100878,0.0593703,2421.1,2421.0,1.56681819]
[1730779102443,0.0593703,2421.1,2421.0,0.77091819]
[1730779103285,0.0593703,2421.1,2421.0,4.42702291]
[1730779103447,0.0593703,2421.1,2421.0,4.90130834]
[1730779103645,0.0593703,2421.1,2421.0,5.67300834]
[1730779104454,0.0593703,2421.1,2421.0,5.67274423]
[1730779104654,0.0593703,2421.1,2421.0,6.26540252]
[1730779104981,0.0593703,2421.1,2421.0,6.26526428]
[1730779106882,0.0593703,2421.1,2421.0,5.67262594]
[1730779107259,0.0593703,2421.1,2421.0,0.77040594]
[1730779107466,0.0593703,2421.1,2421.0,4.90092594]
[1730779107646,0.0593703,2421.1,2421.0,0.77040594]
[1730779107852,0.0593703,2421.1,2421.0,1.56550594]
[1730779108053,0.0593703,2421.1,2421.0,4.92562]
[1730779108250,0.0593703,2421.1,2421.0,6.28795153]
[1730779108583,0.0593703,2422.3,2421.3,0.55]
[1730779108747,0.7656,2422.0,2421.5,4.90937]
[1730779110213,4.12907,2421.9,2421.6,0.29570185]
[1730779110415,8.25819,2421.9,2421.7,0.29570185]
[1730779110706,8.25814,2421.9,2421.5,0.7798]
[1730779110905,4.12933,2421.7,2421.6,0.29559552]
[1730779111129,8.25875,2421.7,2421.3,0.7798]
[1730779111310,8.25875,2421.7,2421.4,0.29563799]
[1730779111511,4.12933,2421.7,2421.3,0.7798]
[1730779111807,4.89482,2421.8,2421.4,0.29558792]
[1730779111997,4.89482,2421.8,2421.5,0.29558792]
[1730779112197,4.89482,2421.8,2421.3,4.90968]
[1730779112393,4.89482,2421.8,2421.4,0.2955225]
[1730779112572,4.89482,2421.8,2421.5,0.2955225]
[1730779112774,4.89482,2421.8,2421.3,0.7798]
[1730779112975,4.12935,2421.7,2421.4,0.29553203]
[1730779113215,4.12933,2421.7,2421.5,0.29553203]
[1730779113523,4.12968,2421.5,2421.0,7.21512829]
[1730779113702,4.12968,2421.5,2421.1,0.76846421]
[1730779113901,4.12968,2421.5,2421.2,0.29555908]
[1730779114087,4.95192,2421.4,2420.9,4.13068]
[1730779114290,4.95192,2421.4,2421.0,0.76860711]
[1730779114616,4.13009,2421.3,2421.1,0.29561404]
[1730779114829,0.822,2421.4,2420.8,2.4935777]
[1730779115003,4.12968,2421.5,2421.0,5.8550577]
[1730779115211,4.12968,2421.5,2421.1,0.76860603]
[1730779115515,4.12934,2421.7,2421.3,0.8175]
[1730779115688,4.94864,2421.7,2421.4,0.29562286]
[1730779115875,4.1296,2421.6,2421.1,4.95704]
[1730779116076,4.1296,2421.6,2421.2,0.85111937]
[1730779116308,4.1296,2421.6,2421.3,0.29557846]
[1730779116623,4.1296,2421.6,2421.1,4.95704]
[1730779116915,4.1296,2421.6,2421.2,0.76858413]
[1730779117083,4.1296,2421.6,2421.3,0.2956052]
[1730779117278,4.1296,2421.6,2421.4,0.2956052]
[1730779117484,4.1296,2421.6,2421.1,4.95696]
[1730779117683,4.1296,2421.6,2421.2,0.76862945]
[1730779117996,4.1296,2421.6,2421.3,0.29562263]
[1730779118198,4.12968,2421.5,2421.4,0.29562263]
[1730779118594,4.1296,2421.6,2421.4,0.29562263]
[1730779118805,4.1296,2421.6,2421.0,5.8550677]
[1730779118806,4.12967,2421.5,2421.1,0.47311572]
[1730779119009,4.12967,2421.5,2421.0,9.9855077]
[1730779119010,4.12967,2421.5,2421.2,0.29570258]
[1730779119208,4.12967,2421.5,2421.3,0.29570258]
[1730779119394,4.12967,2421.5,2421.1,4.13033]
[1730779119395,4.12967,2421.5,2421.2,0.8145]
[1730779119599,4.1295,2421.6,2421.3,0.29571238]
[1730779119810,4.12968,2421.5,2421.2,0.8145]
[1730779119996,4.12993,2421.4,2421.3,0.2957197]
[1730779120522,4.12967,2421.5,2421.3,0.2957197]
[1730779120702,4.12967,2421.5,2421.0,5.0275209]
[1730779120902,4.12984,2421.4,2421.1,0.76898848]
[1730779121101,4.12984,2421.4,2421.2,0.29576072]
[1730779121304,4.12984,2421.4,2421.3,0.29576072]
[1730779121489,4.12967,2421.5,2421.3,0.29576072]
[1730779121688,4.12967,2421.5,2421.1,4.13035]
[1730779121921,4.12967,2421.5,2421.2,0.76886786]
[1730779122124,4.12967,2421.5,2421.3,0.29571974]
[1730779122321,4.12967,2421.5,2421.4,0.29571974]
[1730779122822,4.12951,2421.6,2421.4,0.29571974]
[1730779123124,4.12951,2421.6,2421.0,2.6217786]
[1730779123125,4.94865,2421.7,2421.5,0.295691]
[1730779123329,4.94865,2421.7,2421.3,4.12997]
[1730779123530,0.8193,2421.7,2421.4,0.2957012]
[1730779123824,4.94863,2421.7,2421.5,0.2957012]
[1730779124026,4.12918,2421.8,2421.3,4.93823]
[1730779124212,4.12918,2421.8,2421.4,0.76874472]
[1730779124412,4.12893,2422.0,2421.5,0.29566697]
[1730779124612,4.12905,2421.9,2421.6,0.29566697]
[1730779124803,4.12905,2421.9,2421.5,4.12967]
[1730779125004,4.12905,2421.9,2421.6,0.29566338]
[1730779125215,4.12905,2421.9,2421.5,4.12967]
[1730779125404,4.12905,2421.9,2421.6,0.29566668]
[1730779125618,8.25813,2421.9,2421.4,4.12982]
[1730779125803,8.25813,2421.9,2421.5,0.29568212]
[1730779125987,8.25813,2421.9,2421.6,0.29568212]
[1730779126332,8.25813,2421.9,2421.4,4.12982]
[1730779126630,4.12916,2421.8,2421.5,0.29570408]
[1730779126926,4.12916,2421.8,2421.6,0.29570408]
[1730779127228,4.12916,2421.8,2421.4,4.12982]
[1730779127423,4.12916,2421.8,2421.5,0.29573214]
[1730779127627,4.12916,2421.8,2421.6,0.29573214]
[1730779127827,4.129,2421.9,2421.4,4.12982]
[1730779128130,4.129,2421.9,2421.5,0.76886914]
[1730779128295,4.129,2421.9,2421.6,0.29571482]
[1730779128494,4.129,2421.9,2421.4,4.21233629]
[1730779128495,4.12892,2422.0,2421.7,1.06051482]
[1730779128721,4.12892,2422.0,2421.7,0.7648]
[1730779129815,0.0593703,2422.3,2422.0,0.781]
[1730779130325,0.0593703,2422.3,2422.1,0.29557375]
[1730779130532,0.0593703,2422.3,2422.0,0.781]
[1730779130741,0.0593703,2422.3,2422.1,0.29546712]
[1730779130891,0.0593703,2422.3,2422.0,0.781]
[1730779131091,0.0593703,2422.3,2422.2,0.7676]
[1730779131289,0.0593703,2422.3,2422.2,0.2954769]
[1730779131532,4.1876703,2422.3,2421.9,0.7676]
[1730779131688,4.1876703,2422.3,2422.0,0.29535024]
[1730779131893,0.0593703,2422.3,2422.1,0.29535024]
[1730779132205,4.12847,2422.2,2421.9,0.7676]
[1730779132407,4.1876903,2422.3,2422.0,0.29532455]
[1730779132609,4.1876903,2422.3,2421.9,0.7676]
[1730779132838,4.1876903,2422.3,2422.0,0.2953418]
[1730779132839,4.12858,2422.2,2422.0,0.2953418]
[1730779133036,4.12858,2422.2,2421.9,0.7676]
[1730779133337,4.12858,2422.2,2422.0,0.29533812]
[1730779133504,4.12858,2422.2,2421.9,0.7676]
[1730779133900,4.12858,2422.2,2422.0,0.29533771]
[1730779134214,4.12867,2422.1,2421.6,4.89646]
[1730779134414,4.12882,2422.0,2421.7,0.7680931]
[1730779134613,4.12858,2422.2,2421.6,4.89646]
[1730779134614,4.12864,2422.1,2421.8,0.29541635]
[1730779134838,4.12864,2422.1,2421.9,0.29541635]
[1730779135033,4.12864,2422.1,2421.6,4.89646]
[1730779135212,4.12864,2422.1,2421.7,0.76816719]
[1730779135548,4.12864,2422.1,2421.8,0.29544484]
[1730779135841,4.12864,2422.1,2421.9,0.29544484]
[1730779136187,4.12864,2422.1,2421.6,4.89646]
[1730779136351,4.12848,2422.2,2421.7,4.89732351]
[1730779136506,8.25711,2422.2,2421.8,0.76811351]